Workbook

Sheet Breakeven analysis
A1: Your Company Name Here
A2: Breakeven Analysis
A4: Instructions: Enter or Link #'s in the gray fields.
A5: * Contribution Margin = Revenue minus Variable Costs | E5: Scenarios
A6: SCENARIO PLAN | C6: Notes/References | D6: Actual 12 Mos | E6: Best Case | F6: Mid Case | G6: Worst Case
B7: % Change in Revenue | E7: -0.05 | F7: -0.1 | G7: -0.2
B8: Total Revenue $ | D8: 10013000 | E8: =$D$8+(E7*$D$8) -> 9512350 | F8: =$D$8+(F7*$D$8) -> 9011700 | G8: 8010400
B9: % Change in Margin | E9: 0 | F9: 0 | G9: 0
B10: Margin % (Revenue - Variable %) * | D10: =IFERROR(100%-G45,"") -> 0.4492568661 | E10: =$D$10*(100%+E9) -> 0.4492568661 | F10: =$D$10*(100%+F9) -> 0.4492568661 | G10: 0.4492568661
B11: % Change in Fixed Costs | E11: 0 | F11: 0 | G11: 0
B12: Fixed Costs Cuts $ | E12: =+E13*E11 -> 0 | F12: =+F13*F11 -> 0 | G12: =+G13*G11 -> 0
B13: Fixed Costs $ | D13: =$E$70 -> 4552613.327 | E13: =$D$13+($D$13*E11) -> 4552613.327 | F13: =$D$13+($D$13*F11) -> 4552613.327 | G13: 4552613.327
B14: Net Income (Loss) | D14: =(+D8*D10)-D13 -> -54204.3268 | E14: =(+E8*E10)-E13 -> -279124.7768 | F14: =(+F8*F10)-F13 -> -504045.2268 | G14: =(+G8*G10)-G13 -> -953886.1268
B15: Net Income % | D15: =D14/D8 -> -0.005413395266 | E15: =E14/E8 -> -0.02934340902 | F15: -0.05593231319 | G15: -0.1190809606
B16: Break Even Point $ | D16: =IFERROR((D13+SUM(D67:D69))/D10,"") -> 10133653.31 | E16: =IFERROR(E13/E10,"") -> 10133653.31 | F16: =IFERROR(F13/F10,"") -> 10133653.31 | G16: =IFERROR(G13/G10,"") -> 10133653.31
B17: $ Revenue needed to BEP | D17: =IFERROR(IF(D8>D16,"",+D16-D8),"") -> 120653.3075 | E17: =IFERROR(IF(E8>E16,"",+E16-E8),"") -> 621303.3075 | F17: =IFERROR(IF(F8>F16,"",+F16-F8),"") -> 1121953.307 | G17: =IFERROR(IF(G8>G16,"",+G16-G8),"") -> 2123253.307
B18: or, Fixed Costs $ cuts to get to BEP | D18: =IFERROR(IF(D8>D16,"",(D16-D8)*D10),"") -> 54204.3268 | E18: =IFERROR(IF(E8>E16,"",(E16-E8)*E10),"") -> 279124.7768 | F18: =IFERROR(IF(F8>F16,"",(F16-F8)*F10),"") -> 504045.2268 | G18: =IFERROR(IF(G8>G16,"",(G16-G8)*G10),"") -> 953886.1268
B19: Sales Price per unit $ ( if applicable) | D19: 100 | E19: 100 | F19: 100 | G19: 100
B20: Surplus/ ( deficit) In units | D20: =ROUND((((D8-D16)*D10)/D19),0) -> -542 | E20: =ROUND((((E8-E16)*E10)/E19),0) -> -2791 | F20: =ROUND((((F8-F16)*F10)/F19),0) -> -5040 | G20: =ROUND((((G8-G16)*G10)/G19),0) -> -9539
B21: % of Fixed Costs to cut: | D21: =IFERROR(D18/E70,"") -> 0.01190620044 | E21: =IFERROR(IF(E8>E16,"",+E18/+$E$70),"") -> 0.06131089042 | F21: =IFERROR(IF(F8>F16,"",+F18/+$E$70),"") -> 0.1107155804 | G21: 0.2095249604
A23: TOTAL | B23: Total Revenue | D23: =D8 -> 10013000 | E23: Fixed Cost | F23: Variable Costs | G23: % of Revenue
B24: Cost of Goods Sold | D24: =D39 -> 5008298 | F24: =F39 -> 5008298 | G24: =IFERROR(D24/$D$23,"") -> 0.5001795666
B25: Gross Profit Margin | D25: =D23-D24 -> 5004702 | G25: =IFERROR(D25/$D$23,"") -> 0.4998204334
B26: Total Indirect (Overhead) | D26: =D66 -> 5058906.327 | E26: =E65 -> 4552613.327 | F26: =F44 -> 506293 | G26: 0.5052338287
B27: Net Income (Loss) | D27: =D25-D26 -> -54204.3268 | G27: -0.005413395266
A29: COGS | B29: Actual 12 months Costs:
B30: Direct Labor (fully loaded) | D30: =4862356-400000 -> 4462356 | F30: =D30 -> 4462356 | G30: =IFERROR(D30/$D$23,"") -> 0.4456562469
B31: Direct Materials | D31: 545942 | F31: =D31 -> 545942 | G31: =IFERROR(D31/$D$23,"") -> 0.05452331968
G32: 0
G33: 0
G34: 0
G35: 0
G36: 0
G37: 0
G38: =D38/$D$23 -> 0
B39: Total Direct Costs (COGS) | D39: =SUM(D30:D38) -> 5008298 | F39: =SUM(F30:F38) -> 5008298 | G39: =IFERROR(D39/$D$23,"") -> 0.5001795666
E40: Fixed Cost | F40: Variable Costs | G40: % of Revenue
A41: EXPENSES | B41: Sales Comissions | D41: 506293 | F41: =D41 -> 506293 | G41: =IFERROR(D41/$D$23,"") -> 0.05056356736
B42: Other Variable Overhead | G42: =IFERROR(D42/$D$23,"") -> 0
G43: 0
B44: Variable Overhead | D44: =SUM(D41:D43) -> 506293 | F44: =SUM(F41:F43) -> 506293 | G44: 0.05056356736
B45: Total Variable Costs | F45: =+F44+F39 -> 5514591 | G45: =IFERROR(F45/$D$23,"") -> 0.5507431339
B46: Fixed Overhead Costs (Indirect)
B47: Overhead Salaries (fully loaded) | D47: =3464225.16-200000-75000 -> 3189225.16 | E47: =D47 -> 3189225.16 | G47: =IFERROR(D47/$D$23,"") -> 0.318508455
B48: Accounting and Legal | D48: 48356.44 | E48: =D48 -> 48356.44 | G48: =IFERROR(D48/$D$23,"") -> 0.004829365824
B49: Advertising | D49: 64071.92 | E49: 64071.92 | G49: 0.006398873464
B50: Car, delivery and travel | D50: 50373.8972 | E50: 50373.8972 | G50: 0.005030849615
B51: Insurance | D51: 119806.8432 | E51: 119806.8432 | G51: 0.01196512965
B52: Interest | D52: 28409.2996 | E52: 28409.2996 | G52: 0.002837241546
B53: Payroll processing fees | D53: 6953.1924 | E53: =D53 -> 6953.1924 | G53: 0.0006944164986
B54: Meals & Entertainment | D54: 55794.7698 | E54: 55794.7698 | G54: 0.005572233077
B55: Professional Assistance | D55: 121806.8764 | E55: 121806.8764 | G55: 0.0121648733
B56: Rent | D56: 426747.64 | E56: 426747.64 | G56: 0.04261935883
B57: Repairs & maintenance | D57: 87125.0094 | E57: 87125.0094 | G57: 0.008701189394
B58: Supplies (not included in direct materials) | D58: 51520.4932 | E58: 51520.4932 | G58: 0.005145360352
B59: Taxes (Real estate, etc.) | D59: 10856.12 | E59: 10856.12 | G59: 0.001084202537
B60: Telephone | D60: 14645.9126 | E60: 14645.9126 | G60: 0.001462689763
B61: Travel | D61: 37234.12 | E61: 37234.12 | G61: 0.003718577849
B62: Utilities | D62: 18375.06 | E62: 18375.06 | G62: 0.001835120344
B63: Other (specify) | D63: 161511.9132 | E63: 161511.9132 | G63: 0.01613022203
B64: Miscellaneous expenses | D64: 59798.6598 | E64: 59798.6598 | G64: 0.005972102247
B65: Fixed Overhead | D65: =SUM(D47:D64) -> 4552613.327 | E65: =D65 -> 4552613.327 | F65: =SUM(F47:F64) -> 0 | G65: =IFERROR(D65/$D$23,"") -> 0.4546702613
B66: Total Overhead Costs | D66: =+D65+D44 -> 5058906.327 | E66: =+E65+E44 -> 4552613.327 | F66: =+F65+F44 -> 506293 | G66: =IFERROR(D66/$D$23,"") -> 0.5052338287
A67: OTH-ER | B67: Depreciation | E67: 0 | G67: =IFERROR(D67/$D$23,"") -> 0
B68: Principal portion of debt payment | E68: 0 | G68: =IFERROR(D68/$D$23,"") -> 0
B69: Owner's draw | E69: 0 | G69: =IFERROR(D69/$D$23,"") -> 0
B70: Total $ Needed | D70: =D66+D39+SUM(D67:D69) -> 10067204.33 | E70: =SUM(E66)+E39 -> 4552613.327 | F70: =SUM(F66)+F39 -> 5514591
D71: =SUM(D47:D64) -> 4552613.327 | E71: =IFERROR(E70/D70,"") -> 0.4522222038 | F71: =IFERROR(F70/D70,"") -> 0.5477777962
B72: Break Even Point $ | D72: =D16 -> 10133653.31 | G72: 2.42
B73: $ Revenue needed to BEP | D73: =D17 -> 120653.3075
B74: or, Fixed Costs $ cuts to get to BEP | D74: 54204.3268

Sheet Income Statement

Sheet Trial Balance Import (hidden)

Sheet Summary (hidden)

Sheet Compatibility Report (hidden)
B1: Compatibility Report for Breakeven - Analysis - YRLY-120-30 LEON.xls
B2: Run on 4/8/2020 12:41
B4: If the workbook is saved in an earlier file format or opened in an earlier version of Microsoft Excel, the listed features will not be available.
B6: Significant loss of functionality | E6: # of occurrences | F6: Version
B8: Any effects on this object will be removed. Any text that overflows the boundaries of this graphic will appear truncated. | E8: 1
E9: 12 MO BREAKEVEN'!A1:L77 | F9: Excel 97-2003
B12: Minor loss of fidelity
B14: Some cells or styles in this workbook contain formatting that is not supported by the selected file format. These formats will be converted to the closest format available. | E14: 50 | F14: Excel 97-2003

Sheet Input (hidden)
